Cogmind - Beta 13 @@@ ROGUE MODE // 2024.03.03 @ 09:56:13 Player: TheSlyFawkes Result: Self-destructed Performance ------------- Evolutions (1) 500 Regions Visited (3) 600 Robots Destroyed (15) 75 Value Destroyed (474) 474 Prototype IDs (0) 0 Alien Tech Used (0) 0 Bonus (0) 0 TOTAL SCORE: 1649 Bonus ------- None Cogmind --------- Core Integrity 400/400 Matter 273/300 Energy 250/250 System Corruption 0% Temperature Cool (26) Movement Treading (240) Ox1 Location -9/Materials Parts ------- > --- POWER (1) -------- Ion Engine > --- PROPULSION (2) --- Light Treads > --- UTILITY (3) ------ Medium Storage Unit Medium Storage Unit Hardened Light Armor Plating > --- WEAPON (3) ------- Mining Laser > --- INVENTORY (10) --- Ion Engine Light Nuclear Core Aluminum Leg Aluminum Leg Peak State ------------ > --- POWER ------------ Ion Engine > --- PROPULSION ------- Light Treads Light Treads > --- UTILITY ---------- Medium Storage Unit Medium Storage Unit Hardened Light Armor Plating > --- WEAPON ----------- Light Assault Rifle Rocket Launcher Mining Laser > --- INVENTORY -------- Ion Engine Light Nuclear Core Aluminum Leg Aluminum Leg Light Armor Plating [Rating: 11] Favorites ----------- Power Ion Engine Engine Ion Engine Propulsion Light Treads Treads Light Treads Wheel Compact Wheel Utility Medium Storage Unit Storage Medium Storage Unit Protection Light Armor Plating Weapon Light Assault Rifle Ballistic Gun Light Assault Rifle Launcher Rocket Launcher Special Weapon Mining Laser Build | -11 -10 -10 -9 ------- Run | Yrd Mat Min Mat Slots Evolved 2 | . . . 2 Power . | . . . . Propulsion . | . . . . Utility 1 | . . . 1 Weapon 1 | . . . 1 Parts Attached 25 | 6 15 1 3 Power 3 | 1 2 . . Engine 3 | 1 2 . . Core . | . . . . Reactor . | . . . . Propulsion 8 | 2 6 . . Treads 6 | . 6 . . Leg . | . . . . Wheel 2 | 2 . . . Hover . | . . . . Flight . | . . . . Utility 6 | 1 3 . 2 Device . | . . . . Storage 3 | 1 1 . 1 Processor . | . . . . Hackware . | . . . . Protection 3 | . 2 . 1 Artifact . | . . . . Weapon 8 | 2 4 1 1 Energy Gun . | . . . . Energy Cannon . | . . . . Ballistic Gun 5 | 2 2 . 1 Ballistic Cannon . | . . . . Launcher 2 | . 1 1 . Special Weapon 1 | . 1 . . Impact Weapon . | . . . . Slashing Weapon . | . . . . Piercing Weapon . | . . . . Special Melee Weapon . | . . . . Unidentified Prototypes . | . . . . Parts Lost 1 | . . . 1 Power . | . . . . Propulsion . | . . . . Utility . | . . . . Weapon 1 | . . . 1 Highest Loss Streak 1 | . . . 1 To Critical Strikes . | . . . . Average Slot Usage (%) 94 | . 89 100 96 Engine 13 | . 14 14 11 Treads 21 | . 17 28 20 Wheel 5 | . 10 . . Storage 14 | . 14 14 22 Protection 8 | . 4 14 11 Ballistic Gun 15 | . 24 2 11 Launcher 5 | . . 11 9 Special Weapon 7 | . 2 14 11 Naked Turns . | . . . . Heaviest Build 36 | 10 22 23 36 Greatest Support 40 | 32 40 40 40 Greatest Overweight (x) 6 | . 6 . 1 Average Overweight (x) . | . . . . Largest Inventory Capacity 10 | 8 10 10 10 Average Capacity 9 | 6 9 10 10 Most Carried 10 | 6 10 6 5 Average Carried 6 | 3 7 5 4 Final Capacity 10 | 8 10 10 10 Final Carried 6 | 6 5 6 4 Class Distribution -------------------- 97% | Mutant Dominant Class ---------------- Mutant | -10/Materials Mutant | -10/Mines Tank | -9/Materials Resources | -11 -10 -10 -9 ----------- Run | Yrd Mat Min Mat Matter Collected 730 | 243 378 109 . Remotely . | . . . . Salvage Created 493 | . 475 18 . Parts 28 | . 28 . . Haulers Intercepted . | . . . . Recyclers Shooed . | . . . . Parts Field Recycled . | . . . . Retrieved Matter . | . . . . Parts Self-Destructed . | . . . . Prevented . | . . . . Kills | -11 -10 -10 -9 ------- Run | Yrd Mat Min Mat Combat Hostiles Destroyed 20 | . 15 5 . Guns 12 | . 12 . . AOE 8 | . 3 5 . Classes Destroyed 3 | . 2 1 . Swarmer 3 | . 3 . . Grunt 12 | . 12 . . Assembled 5 | . . 5 . Best Kill Streak 4 | . 4 3 . Combat Bots Only 4 | . 4 3 . Max Kills in Single Turn 1 | . 1 1 . Gunslinging . | . . . . Exploded 1 | . 1 1 . Melee . | . . . . Uniques/NPCs Destroyed . | . . . . Combat | -11 -10 -10 -9 -------- Run | Yrd Mat Min Mat Hostile Shots Fired 101 | . 83 5 13 Missed 29 | . 26 1 2 Damage Taken 1041 | . 694 117 230 Core 166 | . 124 42 . Absorbed by Shields . | . . . . Redirected to Shielding 33 | . 33 . . Core Remaining (%) 66 | 100 . 33 . Volleys Fired 57 | . 46 9 2 Largest 2 | . 2 1 2 Hottest 120 | . 50 33 120 Shots Fired 105 | . 92 9 4 Gun 89 | . 87 . 2 Cannon . | . . . . Launcher 14 | . 5 9 . Special 2 | . . . 2 Kinetic 89 | . 87 . 2 Thermal 2 | . . . 2 Explosive 14 | . 5 9 . Electromagnetic . | . . . . Robot Hit Streak 9 | . 9 8 2 Robot Miss Streak 4 | . 4 2 2 Penetration Max . | . . . . Secondary Targets 4 | . 4 . . Max Gunslinging Chain 1 | . 1 . . Shots Hit Robots 64 | . 57 5 2 Core Hits 39 | . 32 7 . Critical Kills . | . . . . Critical Parts Destroyed 1 | . 1 . . Critical Strikes 1 | . 1 . . Destroy 1 | . 1 . . Melee Attacks . | . . . . Impact . | . . . . Slashing . | . . . . Piercing . | . . . . Sneak Attacks . | . . . . Combat Hostiles . | . . . . Follow-up Attacks . | . . . . Damage Inflicted 1266 | . 855 377 34 Guns 580 | . 570 . 10 Cannons . | . . . . Explosions 659 | . 282 377 . Melee . | . . . . Ramming 3 | . 3 . . Kinetic 580 | . 570 . 10 Thermal 24 | . . . 24 Explosive 659 | . 282 377 . Electromagnetic . | . . . . Impact . | . . . . Slashing . | . . . . Piercing . | . . . . Highest Corruption . | . . . . Average Corruption . | . . . . Corruption Purged . | . . . . Corruption Blocked . | . . . . Overload Shots . | . . . . Overflow Damage 43 | . . 43 . Projectiles . | . . . . Explosions 43 | . . 43 . Melee . | . . . . Knockbacks . | . . . . Impact . | . . . . Kinetic . | . . . . Secondary . | . . . . Self-Inflicted Damage 120 | . 56 64 . Shots 5 | . 3 2 . Rammed 1 | . 1 . . Targets Rammed 1 | . 1 . . Kicked . | . . . . Crushed . | . . . . Highest Temperature 102 | . 38 37 102 Average Temperature 23 | . 12 25 55 Received Heat Transfer 346 | . 270 40 36 Siege Activations . | . . . . Robots Corrupted . | . . . . Combat Hostiles . | . . . . Parts Fried . | . . . . Impact Corruptions . | . . . . Robots Melted . | . . . . Combat Hostiles . | . . . . Parts Melted . | . . . . Heat Transferred 50 | . . . 50 Parts Sabotaged . | . . . . Parts Stolen . | . . . . Parts Stripped . | . . . . Power Chain Reactions . | . . . . Alert | -11 -10 -10 -9 ------- Run | Yrd Mat Min Mat Peak Influence 186 | . 186 152 1 Initial 66 | . . 66 . Average 78 | . 103 54 . Maximum Alert Level . | . . . . Low Security (%) 100 | 100 100 100 100 Level 1 . | . . . . Level 2 . | . . . . Level 3 . | . . . . Level 4 . | . . . . Level 5 . | . . . . High Security . | . . . . Max Security . | . . . . Squads Dispatched 3 | . 2 . 1 Investigation 1 | . 1 . . Extermination . | . . . . Reinforcement 2 | . 1 . 1 Assault . | . . . . Garrison . | . . . . Intercept . | . . . . Searches Triggered . | . . . . Construction Impeded . | . . . . Haulers Reinforced . | . . . . Active Scanning Responses . | . . . . Cargo Convoy Interrupts . | . . . . Stealth | -11 -10 -10 -9 --------- Run | Yrd Mat Min Mat Distress Signals 4 | . 4 . . Communications Jammed . | . . . . Distress Signals . | . . . . Times Spotted 35 | . 28 4 3 Peak Tracking Total 5 | . 5 1 4 Tactical Retreats 1 | . 1 . . Traps | -11 -10 -10 -9 ------- Run | Yrd Mat Min Mat Traps Triggered 2 | . 2 . . Indirectly . | . . . . Trap Hack Attempts . | . . . . Triggered . | . . . . Disarmed . | . . . . Reprogrammed . | . . . . Reused . | . . . . Traps Extracted . | . . . . Installed . | . . . . Triggered . | . . . . Machines | -11 -10 -10 -9 ---------- Run | Yrd Mat Min Mat Machines Disabled 1 | . 1 . . Max in Single Turn 1 | . 1 . . Machines Repaired . | . . . . Machines Dismantled . | . . . . Machines Sabotaged . | . . . . Overloaded Fab Kills . | . . . . Hacking | -11 -10 -10 -9 --------- Run | Yrd Mat Min Mat Machines Accessed 5 | . 4 1 . Terminals 4 | . 4 . . Fabricators . | . . . . Repair Stations . | . . . . Recycling Units . | . . . . Scanalyzers . | . . . . Garrison Access . | . . . . Total Hacks 16 | . 15 1 . Successful 12 | . 11 1 . Failed 4 | . 4 . . Catastrophic . | . . . . Database Lockouts . | . . . . Manual 9 | . 9 . . Terminals 15 | . 15 . . Fabricators . | . . . . Repair Stations . | . . . . Recycling Units . | . . . . Scanalyzers . | . . . . Garrison Access . | . . . . Terminal Hacks 7 | . 6 1 . Record 5 | . 5 . . Open Door 1 | . . 1 . Locate Traps 1 | . 1 . . Fabricator Hacks . | . . . . Repair Station Hacks . | . . . . Recycling Unit Hacks . | . . . . Scanalyzer . | . . . . Garrison Access Hacks . | . . . . Unauthorized Hacks 5 | . 5 . . Terminals 5 | . 5 . . Botnet 4 | . 4 . . Operators 1 | . 1 . . Fabricators . | . . . . Repair Stations . | . . . . Recycling Units . | . . . . Scanalyzers . | . . . . Garrison Access . | . . . . Data Cores Recovered . | . . . . Used . | . . . . Hacking Detections 3 | . 3 . . Full Trace Events . | . . . . Feedback Events . | . . . . Feedback Blocked . | . . . . Robot Schematics Acquired . | . . . . Robots Built . | . . . . Authchips . | . . . . Time . | . . . . Total Robot Build Rating . | . . . . Part Schematics Acquired . | . . . . Parts Built . | . . . . Authchips . | . . . . Time . | . . . . Total Part Build Rating . | . . . . Parts Repaired . | . . . . Time . | . . . . Parts Recycled . | . . . . Recycled Matter . | . . . . Retrieved Matter . | . . . . Retrieved Components . | . . . . Parts Scanalyzed . | . . . . Part Schematics Acquired . | . . . . Parts Damaged . | . . . . Bothacking | -11 -10 -10 -9 ------------ Run | Yrd Mat Min Mat Used RIF Installer . | . . . . Robots Hacked . | . . . . Non-combat . | . . . . Combat . | . . . . Robot Hacks Applied . | . . . . Relay Couplers Released . | . . . . Fabnet Peak Effective % . | . . . . Robots Rewired . | . . . . Allies Hacked . | . . . . Hacks Repelled . | . . . . Allies | -11 -10 -10 -9 -------- Run | Yrd Mat Min Mat Total Allies . | . . . . Largest Group . | . . . . Highest-Rated Group . | . . . . Highest-Rated Ally . | . . . . Total Orders . | . . . . Ally Attacks . | . . . . Total Damage . | . . . . Kills . | . . . . Allies Corrupted . | . . . . Allies Melted . | . . . . Intel | -11 -10 -10 -9 ------- Run | Yrd Mat Min Mat Robot Analysis Total . | . . . . Derelict Logs Recovered 1 | . . 1 . Drone Launches . | . . . . Drone Recoveries . | . . . . Exploration | -11 -10 -10 -9 ------------- Run | Yrd Mat Min Mat Turns Passed 2072 | 59 1156 799 58 Spaces Moved 1242 | 41 698 480 23 Core 7 | 5 2 . . Treads 911 | . 408 480 23 Legs . | . . . . Wheels 324 | 36 288 . . Hover . | . . . . Flight . | . . . . Fastest Speed 50 | 50 100 160 160 Average Speed 144 | 93 135 160 166 Slowest Speed 350 | 100 350 160 240 Overloaded Moves . | . . . . Propulsion Burnouts . | . . . . Robots Hopped . | . . . . Cave-ins Triggered . | . . . . Exploration Rate (%) 47 | 5 96 86 3 Regions Visited 3 Branch Regions 1 Pre-discovered Areas 1 | . . 1 . Known Exits Taken . | . . . . Unknown Exits Taken 3 | 1 1 1 . Scrap Searched 1 | . . 1 . Spaces Dug . | . . . . Terrain Destroyed 108 | . 22 85 1 Melee . | . . . . Projectile 1 | . . . 1 AOE 107 | . 22 85 . Terrain Rammed . | . . . . Walls Destroyed . | . . . . Machines Disabled . | . . . . Actions | -11 -10 -10 -9 --------- Run | Yrd Mat Min Mat Total 1420 | 58 825 502 35 Wait 65 | 5 43 12 5 Move 1239 | 40 697 479 23 Hop . | . . . . Pick Up 19 | 7 10 1 1 Fast Attach 9 | 5 4 . . Attach 7 | 1 4 . 2 Detach . | . . . . Swap 9 | . 7 1 1 Drop 14 | . 13 . 1 Fire 57 | . 46 9 2 Melee . | . . . . Ram . | . . . . Kick . | . . . . Crush 1 | . 1 . . Escape Stasis . | . . . . Rewire . | . . . . Trap . | . . . . Miscellaneous . | . . . . Route ------- -11/Scrapyard -10/Materials (discovered 4 exits: [*Mat x3] / *Min) -10/Mines (discovered 2 exits: [*Mat x2]) -9/Materials History --------- Turn | Location | Event 29 | -11/Scrapyard | Discovered new exit (range 15) 60 | -11/Scrapyard | Entered Materials 161 | -10/Materials | Discovered new exit (range 9) 257 | -10/Materials | Discovered new exit (range 15) 312 | -10/Materials | Build established: Mutant 569 | -10/Materials | Discovered new exit (range 16) 936 | -10/Materials | Discovered new exit (range 8) 1216 | -10/Materials | Entered Mines 1217 | -10/Mines | Learned location of Storage (-9) 1247 | -10/Mines | Learned Materials security intel 1275 | -10/Mines | Assembled infested the area 1311 | -10/Mines | Received a Rocket Launcher from a helpful Derelict 1362 | -10/Mines | Core integrity fell below 50% 1512 | -10/Mines | Met a Derelict who couldn't figure out how to use a Trap Extractor 1713 | -10/Mines | Discovered new exit (range 8) 1734 | -10/Mines | Discovered new exit (range 14) 2015 | -10/Mines | Entered Materials 2015 | -9/Materials | Evolved 2 slots: Utility x1, Weapon x1 2073 | -9/Materials | Self-destructed Last Messages --------------- Acquired 34 matter. EXIT=FOUND R-06 Scavenger collects Med. Matter Pod. K-01 Serf collects debris. K-01 Serf cleans the Plasma Injector. K-01 Serf collects debris. PARAMETERS=UTILITY+1,WEAPON+1 LOCATION=UNKNOWN GOAL=ESCAPE Loading Materials security intel (x10)... EX-5GS(g): "What?! This place again? I'm sticking with you." Acquired Hrd. Light Armor Plating. Dropped Lgt. Armor Plating. ALERT: Hostiles spotted, dispatching reinforcements to Terminal M002. EX-5GS(g) Beamcaster severed. Lgt. Treads severed. Rocket Launcher severed. Lgt. Assault Rifle destroyed. Map ----- +----------------------------------------------------+ | ???????????????????????????????????????????????? | | ???????????????????????????????????????????????? | | ???????????????????????????????????????????????? | | ???????????????????????????????????????????????? | | ???????????????????????????????????????????????? | | ???????????????????????????????????????????????? | | ???????????????????????????????????????????????? | | ???????????????????????????????????????????????? | | ???????????????????????????????????????????????? | | ???????????????????????????????????????????????? | | ??????????????????????? ?????????????????????? | | ??????????????????????? "????????????????????? | | ??????????????????????? ""???????????????????? | | ??????????????????????? ""???????????????????? | | ??????????????????????? "???????????????????? | | ??????????????????????? ????????????????????? | | ??????????????????????? ????????????????????? | | ??????????????????????# ????????????????????? | | ??????????????????????# #????????????????????? | | ???"" ?????????######## #????????????????????? | | ???"" / #### # #????????????????????? | | ?????????# [+ """ # #????????????????????? | | ?????????## #### """ # #????????????????????? | | ???????????????#! """ # #????????????????????? | | ???????????????# # #????????????????????? | | ???????????????# #@ #????????????????????? | | ??????????????####+##"#l ######???????????????? | | ??????????????# =g ?????????? | | ??????????????# g ?????????? | | ??????????????# ?????????? | | ??????????????###########+############?????????? | | ???????????????????????????????????????????????? | | ???????????????????????????????????????????????? | | ???????????????????????????????????????????????? | | ???????????????????????????????????????????????? | | ???????????????????????????????????????????????? | | ???????????????????????????????????????????????? | | ???????????????????????????????????????????????? | | ???????????????????????????????????????????????? | | ???????????????????????????????????????????????? | | ???????????????????????????????????????????????? | | ???????????????????????????????????????????????? | | ???????????????????????????????????????????????? | | ???????????????????????????????????????????????? | | ???????????????????????????????????????????????? | | ???????????????????????????????????????????????? | | ???????????????????????????????????????????????? | | ???????????????????????????????????????????????? | | ???????????????????????????????????????????????? | | ???????????????????????????????????????????????? | +----------------------------------------------------+ Best States ------------- Heat Dissipation 28 Energy Generation 10 Energy Capacity 250 Matter Stores 300 Matter Capacity 300 Sight Range 16 Terrain Scan Density 10 Armor Coverage 150 Propulsion Shielding 33 Evasion (%) 40 Recoil Reduction 2 Item Schematics ----------------- None Robot Schematics ------------------ None Fabricated ------------ Nothing Alien Tech Used ----------------- None Achievements -------------- None Challenges ------------ None Game ------ Seed ExplosiveResetPenetrator Manual? 0 Play Time 00:16:54 Cumulative 33.9 hours Start 2024.03.03 @ 09:40:18 End 2024.03.03 @ 09:56:13 Sessions 1 Manual Loads 0 Difficulty Rogue Special Mode None Game No. 52 Rogue 51 Adventurer 1 Explorer 0 Win Type - Total 0 Types 0/0/0/0/0/0/0/0/0 Lore% 20 Gallery% 26 Achievement% 29 Wizard Run 0 Options --------- Layout 1 ASCII 0 Keyboard 0 Movement Mouse Keybinds 0 Fullscreen 1 Font 24/Smallcaps Map View 50x35 Zoom Use 0% Tactical HUD 0 Map Filters NONE Filters NONE Steam 1 RUN: 1a6097ef-ae7b-44ba-a3c4-8be591dcab37